{"text_format":"1","workbook":"xlsx","n_sheets":3,"sheets":["List1","Jidla","JidlaR"],"not_rendered":{"charts":0,"images":3,"macros":1,"external_links":0,"defined_names":0,"comments":2,"pivot_tables":0},"unopened":[],"bounds":{"document_bytes":16777216,"sheet_cells":100000,"rows_first":2000,"rows_last":500,"rows_between":2000,"halvings":0,"cell_chars":16384,"cell_head_chars":4096},"cells_cut":0,"cells_raw":0,"read":"whole","date_system":"1900"}

{"sheet":"List1","index":0,"n_rows":18,"n_cols":7,"rows_kept":18,"cut":false,"hidden":false,"merged":[]}
["Jídelníček"]
[null,null,null,"   Klikni myší na požadovaném dnu a pak na Výběr jídla",null,null,false]
[null,null,null,"  Originální jídlo (mimo seznam) vepište do řádků sama",49]
["Datum","Den","Polévka","Hlavní jídlo","Poznámka"]
["2021-05-17",{"$f":"Den_nazev(WEEKDAY(A5,1))","v":"po"}," "]
[{"$f":"A5+1","v":"2021-05-18"},{"$f":"Den_nazev(WEEKDAY(A6,1))","v":"út"}]
[{"$f":"A6+1","v":"2021-05-19"},{"$f":"Den_nazev(WEEKDAY(A7,1))","v":"st"}]
["2021-05-20","čt"]
["2021-05-21","pá"," "]
["2021-05-22","so"]
["2021-05-23","ne"]
["2021-05-24","po"]
["2021-05-25","út"]
[{"$f":"A13+1","v":"2021-05-26"},"st"]
[{"$f":"A14+1","v":"2021-05-27"},"čt"]
["2021-05-28","pá"]
[{"$f":"A16+1","v":"2021-05-29"},"so"]
["2021-05-30","ne"]

{"sheet":"Jidla","index":1,"n_rows":57,"n_cols":10,"rows_kept":57,"cut":false,"hidden":false,"merged":[]}
["Seznam oblíbených jídel"]
["Podle abecedy"]
["Jídlo",null,null,null,54,null,"Polévka",null,23]
["Bramborové gril. plátky tvarohový krém, čubrica",null,null,null,null,4,"Bramboračka",null,null,9]
["Bramborové knedlíky plněné uzeným masem",null,null,null,null,4,"Brokolicová",null,null,8]
["Brambory s tvarohem klasické",null,null,null,null,2,"Cibulačka",null,null,2]
["Čína s rýží, sojovka, sladko-kysele",null,null,null,null,5,"Česnečka",null,null,6]
["Drůbeží stejk s bramborem, fazolky",null,null,null,null,8,"Čočková",null,null,5]
["File z tresky bramborová kaše (obalované, pečené)",null,null,null,null,9,"Drštková pravá",null,null,4]
["Francouzské brambory",null,null,null,null,null,"Drůbeží",null,null,6]
["Guláš, hovězí, vepřový či krůtí",null,null,null,null,8,"Hlívová drštková",null,null,7]
["Halušky se zelím nebo brynzou",null,null,null,null,6,"Hokkaido",null,null,7]
["Houbovník",null,null,null,null,null,"Houbová bílá",null,null,3]
["Italské těstoviny, mleté maso, protlak",null,null,null,null,8,"Hovězí vývar",null,null,3]
["Jarní závitky, hotové jídlo",null,null,null,null,3,"Hrachová",null,null,5]
["Krupicová kaše",null,null,null,null,null,"Hrstková",null,null,2]
["Krůtí roláda z Lidlu",null,null,null,null,5,"Chřestová",null,null,5]
["Kuřecí či vepřový plátek v bramboráku (dračí stopa)",null,null,null,null,5,"Jelítková",null,null,6]
["Květák (smažený, obalovaný) s bramborem, tatarka",null,null,null,null,6,"Kroupová ovarová",null,null,6]
["Lazaně",null,null,null,null,4,"Opěnková",null,null,3]
["Lečo nebo ratatouille",null,null,null,null,4,"Pórková",null,null,6]
["Moravský brabec, br. Knedlík",null,null,null,null,8,"Rajská"]
["Obalovaný kapr bramborová kaše",null,null,null,null,6,"Z bram. kaše",null,null,5]
["Ovarové koleno, chléb",null,null,null,null,6,"Ze sáčku",null,null,6]
["Ovocné knedlíky, tvaroh, smetana",null,null,null,null,7,"Zelňačka"]
["Paella - rýžový nákyp s olivami",null,null,null,null,6,"Žampionová",null,null,4]
["Párek, bramborová kaše",null,null,null,null,7]
["Pečená kachna, husa, knedlík, zelí",null,null,null,null,7]
["Pečená krůta s bramborem a jablečným kompotem",null,null,null,null,7]
["Pečené kuře s bramborem a jablečným kompotem",null,null,null,null,7]
["Pizza",null,null,null,null,5]
["Plněné papriky",null,null,null,null,5]
["Prejt s bramborem a zelím",null,null,null,null,5]
["Přírodní vepřový plátek s bramborem, fazolky",null,null,null,null,6]
["Pstruh na másle",null,null,null,null,2]
["Rajská omáčka"]
["Rizoto italské",null,null,null,null,4]
["Roláda s bramborem",null,null,null,null,4]
["Rozlétaní ptáčci",null,null,null,null,8]
["Rybí prsty, bramborová kaše",null,null,null,null,5]
["Rýžová kaše",null,null,null,null,1]
["Řízek a bramborový salát",null,null,null,null,8]
["Segedínský guláš",null,null,null,null,2]
["Sekaná/karbanátky s bramborem",null,null,null,null,7]
["Smažený kapr bramborová kaše",null,null,null,null,3]
["Stejk z lososa bramborová kaše",null,null,null,null,6]
["Stejk z mahi mahi bramborová kaše"]
["Svíčková, falešná či z krůtího stejku",null,null,null,null,7]
["Špagety, sýrové, karbonara nebo rajčatové",null,null,null,null,8]
["Šunkofleky s houbama",null,null,null,null,5]
["Topinky obalované v rozšlehaném vejci",null,null,null,null,7]
["Uzené maso bramborová kaše",null,null,null,null,6]
["Uzené maso, čočka (též volské oko)",null,null,null,null,6]
["Vepřová pečeně , knedlík, zelí",null,null,null,null,7]
["Vepřové plátky na houbách",null,null,null,null,8]
["Volské oko, bramborová kaše",null,null,null,null,6]
["Žemlovka",null,null,null,null,4]

{"sheet":"JidlaR","index":2,"n_rows":57,"n_cols":10,"rows_kept":57,"cut":false,"hidden":false,"merged":[]}
["Seznam oblíbených jídel"]
["Podle obliby"]
["Jídlo",null,null,null,54,null,"Polévka",null,23]
["File z tresky bramborová kaše (obalované, pečené)",null,null,null,null,9,"Bramboračka",null,null,9]
["Drůbeží stejk s bramborem, fazolky",null,null,null,null,8,"Brokolicová",null,null,8]
["Guláš, hovězí, vepřový či krůtí",null,null,null,null,8,"Hlívová drštková",null,null,7]
["Italské těstoviny, mleté maso, protlak",null,null,null,null,8,"Hokkaido",null,null,7]
["Moravský brabec, br. Knedlík",null,null,null,null,8,"Česnečka",null,null,6]
["Rozlétaní ptáčci",null,null,null,null,8,"Drůbeží",null,null,6]
["Řízek a bramborový salát",null,null,null,null,8,"Jelítková",null,null,6]
["Špagety, sýrové, karbonara nebo rajčatové",null,null,null,null,8,"Kroupová ovarová",null,null,6]
["Vepřové plátky na houbách",null,null,null,null,8,"Pórková",null,null,6]
["Ovocné knedlíky, tvaroh, smetana",null,null,null,null,7,"Ze sáčku",null,null,6]
["Párek, bramborová kaše",null,null,null,null,7,"Čočková",null,null,5]
["Pečená kachna, husa, knedlík, zelí",null,null,null,null,7,"Hrachová",null,null,5]
["Pečená krůta s bramborem a jablečným kompotem",null,null,null,null,7,"Chřestová",null,null,5]
["Pečené kuře s bramborem a jablečným kompotem",null,null,null,null,7,"Z bram. kaše",null,null,5]
["Sekaná/karbanátky s bramborem",null,null,null,null,7,"Drštková pravá",null,null,4]
["Svíčková, falešná či z krůtího stejku",null,null,null,null,7,"Žampionová",null,null,4]
["Topinky obalované v rozšlehaném vejci",null,null,null,null,7,"Houbová bílá",null,null,3]
["Vepřová pečeně , knedlík, zelí",null,null,null,null,7,"Hovězí vývar",null,null,3]
["Halušky se zelím nebo brynzou",null,null,null,null,6,"Opěnková",null,null,3]
["Květák (smažený, obalovaný) s bramborem, tatarka",null,null,null,null,6,"Cibulačka",null,null,2]
["Obalovaný kapr bramborová kaše",null,null,null,null,6,"Hrstková",null,null,2]
["Ovarové koleno, chléb",null,null,null,null,6,"Rajská"]
["Paella - rýžový nákyp s olivami",null,null,null,null,6,"Zelňačka"]
["Přírodní vepřový plátek s bramborem, fazolky",null,null,null,null,6]
["Stejk z lososa bramborová kaše",null,null,null,null,6]
["Uzené maso bramborová kaše",null,null,null,null,6]
["Uzené maso, čočka (též volské oko)",null,null,null,null,6]
["Volské oko, bramborová kaše",null,null,null,null,6]
["Čína s rýží, sojovka, sladko-kysele",null,null,null,null,5]
["Krůtí roláda z Lidlu",null,null,null,null,5]
["Kuřecí či vepřový plátek v bramboráku (dračí stopa)",null,null,null,null,5]
["Pizza",null,null,null,null,5]
["Plněné papriky",null,null,null,null,5]
["Prejt s bramborem a zelím",null,null,null,null,5]
["Rybí prsty, bramborová kaše",null,null,null,null,5]
["Šunkofleky s houbama",null,null,null,null,5]
["Bramborové gril. plátky tvarohový krém, čubrica",null,null,null,null,4]
["Bramborové knedlíky plněné uzeným masem",null,null,null,null,4]
["Lazaně",null,null,null,null,4]
["Lečo nebo ratatouille",null,null,null,null,4]
["Rizoto italské",null,null,null,null,4]
["Roláda s bramborem",null,null,null,null,4]
["Žemlovka",null,null,null,null,4]
["Jarní závitky, hotové jídlo",null,null,null,null,3]
["Smažený kapr bramborová kaše",null,null,null,null,3]
["Brambory s tvarohem klasické",null,null,null,null,2]
["Pstruh na másle",null,null,null,null,2]
["Segedínský guláš",null,null,null,null,2]
["Rýžová kaše",null,null,null,null,1]
["Francouzské brambory"]
["Houbovník"]
["Krupicová kaše"]
["Rajská omáčka"]
["Stejk z mahi mahi bramborová kaše"]